bitfinex/quotes_ETHUSD_20250916
["timestamp","ask_amount","ask_price","bid_price","bid_amount"]
[1758059748723,0.002,4510.8,4510.7,8.31039638]
[1758059748930,0.002,4510.8,4510.7,8.77449638]
[1758059750529,0.002,4510.8,4510.7,9.22279638]
[1758059752316,0.002,4510.8,4510.7,8.77449638]
[1758059753017,0.002,4510.8,4510.7,9.22279638]
[1758059754639,0.002,4510.8,4510.7,8.31039638]
[1758059756653,0.002,4510.8,4510.7,12.12739638]
[1758059763292,0.002,4510.8,4510.7,8.44139638]
[1758059763478,0.002,4510.8,4510.7,12.12739638]
[1758059764751,0.002,4510.8,4510.7,11.19999638]
[1758059764952,0.002,4511.3,4510.7,11.19999638]
[1758059764953,0.002,4511.3,4510.9,0.792]
[1758059765261,0.002,4511.3,4510.8,5.21690165]
[1758059765262,0.002,4511.3,4511.2,10.22238669]
[1758059765466,0.002,4511.3,4511.2,14.22908669]
[1758059765666,0.002,4511.3,4511.2,15.15648669]
[1758059766676,0.002,4511.3,4511.2,15.26688669]
[1758059766868,0.002,4511.3,4511.2,16.58990838]
[1758059767281,0.002,4511.3,4511.2,16.74800838]
[1758059768652,0.002,4511.3,4511.2,17.54000838]
[1758059769095,0.002,4511.3,4511.2,17.98525687]
[1758059771909,0.002,4511.3,4511.2,17.53325687]
[1758059772109,0.002,4511.3,4511.2,17.98525687]
[1758059772464,0.002,4511.3,4511.2,20.42931472]
[1758059783894,0.002,4511.3,4511.2,21.42627824]
[1758059788931,0.002,4511.8,4511.7,3.00845942]
[1758059789109,0.002,4511.8,4511.7,17.42126914]
[1758059789430,0.002,4511.8,4511.7,18.72850455]
[1758059789627,0.002,4511.8,4511.7,18.99180455]
[1758059791295,0.002,4511.8,4511.7,20.5211624]
[1758059791531,0.002,4511.8,4511.7,22.10801174]
[1758059791726,0.002,4511.8,4511.7,22.54801174]
[1758059795773,0.002,4511.8,4511.7,20.10395389]
[1758059798060,0.002,4511.8,4511.7,18.88495389]
[1758059798447,0.002,4511.8,4511.7,19.18925389]
[1758059798651,0.002,4511.8,4511.7,20.10395389]
[1758059798828,0.002,4511.8,4511.7,18.88495389]
[1758059799738,0.002,4511.8,4511.7,19.62925389]
[1758059799939,0.002,4511.8,4511.7,21.63331174]
[1758059800141,0.002,4511.8,4511.7,22.54801174]
[1758059803675,0.002,4511.8,4511.7,16.54536661]
[1758059803838,0.002,4511.8,4511.7,21.52291174]
[1758059804864,0.002,4511.8,4511.7,21.96291174]
[1758059805045,0.002,4511.8,4511.7,21.52291174]
[1758059806279,0.002,4511.8,4511.7,22.43761174]
[1758059806686,0.002,4511.8,4511.7,21.21861174]
[1758059807597,0.002,4511.8,4511.7,18.77455389]
[1758059807802,0.002,4511.8,4511.7,19.07885389]
[1758059808396,0.002,4511.8,4511.7,19.55355389]
[1758059808766,0.002,4511.8,4511.7,19.07885389]
[1758059810091,0.002,4511.8,4511.7,18.77455389]
[1758059810292,0.002,4511.8,4511.7,19.07885389]
[1758059810492,0.3643,4511.8,4511.7,9.08690876]
[1758059810675,0.3643,4511.8,4511.7,18.77455389]
[1758059811003,0.101,4511.8,4511.7,18.77455389]
[1758059811171,0.002,4511.8,4511.7,18.77455389]
[1758059811369,0.1016,4511.8,4511.7,7.97475942]
[1758059811769,0.3649,4511.8,4511.7,11.65975942]
[1758059812093,0.5219,4511.8,4511.7,11.65975942]
[1758059812400,0.3649,4511.8,4511.7,11.65975942]
[1758059813509,0.3649,4511.8,4511.7,14.10381727]
[1758059814103,0.3649,4511.8,4511.7,14.21421727]
[1758059816007,0.255,4511.8,4511.7,14.21421727]
[1758059816184,0.5183,4511.8,4511.7,14.21421727]
[1758059816788,0.255,4511.8,4511.7,14.21421727]
[1758059819499,0.255,4511.8,4511.7,11.77015942]
[1758059819926,0.002,4511.8,4511.7,11.77015942]
[1758059822230,0.002,4511.8,4511.7,14.30271823]
[1758059822400,0.002,4511.8,4511.7,13.98811823]
[1758059822810,0.2526,4511.8,4511.7,13.98711823]
[1758059824014,0.002,4511.8,4511.7,13.98711823]
[1758059824414,0.255,4511.8,4511.7,13.98711823]
[1758059826016,0.002,4511.8,4511.7,13.98711823]
[1758059829547,0.002,4511.8,4511.7,15.16121823]
[1758059830164,0.002,4511.8,4511.7,14.68841823]
[1758059830576,0.002,4511.8,4511.7,10.19271823]
[1758059830577,0.255,4511.8,4511.7,10.19271823]
[1758059830747,0.255,4511.8,4511.7,13.87671823]
[1758059830947,0.002,4511.8,4511.7,13.87671823]
[1758059831769,0.002,4511.8,4511.7,14.19131823]
[1758059832065,0.002,4511.8,4511.7,13.87671823]
[1758059838776,0.101,4511.8,4511.7,13.87671823]
[1758059839075,0.002,4511.8,4511.7,13.87671823]
[1758059839476,0.002,4511.8,4511.7,13.98711823]
[1758059840681,0.002,4511.8,4511.7,14.30171823]
[1758059842358,0.002,4511.8,4511.7,10.61771823]
[1758059842559,0.002,4511.8,4511.7,14.30171823]
[1758059843161,0.002,4511.8,4511.7,13.98711823]
[1758059843983,0.002,4511.8,4511.7,14.30171823]
[1758059844282,0.002,4511.8,4511.7,13.98711823]
[1758059845282,0.002,4511.8,4511.7,10.30311823]
[1758059845480,0.002,4511.8,4511.7,13.98711823]
[1758059845685,0.002,4511.8,4511.7,14.77571823]
[1758059845880,0.002,4511.8,4511.7,19.77821328]
[1758059847083,0.002,4511.8,4511.7,14.17751823]
[1758059847269,0.101,4511.8,4511.7,18.87921328]
[1758059847887,0.002,4511.8,4511.7,18.87921328]
[1758059848689,0.002,4511.8,4511.7,13.87671823]
[1758059848914,0.002,4511.8,4511.7,18.87921328]
[1758059850757,0.002,4511.8,4511.7,19.66781328]
[1758059850957,0.002,4511.8,4511.7,20.10471328]
[1758059851857,0.002,4511.8,4511.7,19.66781328]
[1758059852057,0.002,4511.8,4511.7,13.87671823]
[1758059852259,0.002,4511.8,4511.7,18.87921328]
[1758059852558,0.002,4511.8,4511.7,20.10471328]
[1758059853977,0.002,4511.8,4511.7,19.18001328]
[1758059854786,0.002,4511.8,4511.7,20.10471328]
[1758059855203,0.002,4511.8,4511.7,19.18001328]
[1758059856001,0.002,4511.8,4511.7,20.10471328]
[1758059857104,0.002,4511.8,4511.7,20.21511328]
[1758059859106,0.002,4511.8,4511.7,16.53111328]
[1758059859274,0.002,4511.8,4511.7,20.21511328]
[1758059868042,0.002,4511.8,4511.7,19.29041328]
[1758059870648,0.002,4511.8,4511.7,19.77821328]
[1758059870835,0.002,4511.8,4511.7,19.29041328]
[1758059873644,0.002,4511.8,4511.7,20.21511328]
[1758059878060,0.002,4511.8,4511.7,19.29041328]
[1758059878361,0.002,4511.8,4511.7,15.60641328]
[1758059878561,0.002,4511.8,4511.7,19.28941328]
[1758059878940,0.002,4511.8,4511.7,20.21801328]
[1758059879446,0.002,4511.8,4511.7,19.28941328]
[1758059879966,0.002,4511.8,4511.7,18.98861328]
[1758059880452,0.002,4511.8,4511.7,19.30211328]
[1758059880650,0.002,4511.8,4511.7,20.23071328]
[1758059886180,0.002,4511.8,4511.7,19.78321328]
[1758059886546,0.002,4511.8,4511.7,20.23071328]
[1758059889149,0.002,4511.8,4511.7,19.78321328]
[1758059889349,0.002,4511.8,4511.7,20.23071328]
[1758059890499,0.002,4511.8,4511.7,19.78321328]
[1758059890792,0.002,4511.8,4511.7,23.99321328]
[1758059892476,0.002,4511.8,4511.7,23.51211328]
[1758059894206,0.002,4511.8,4511.7,23.19861328]
[1758059894502,0.002,4511.8,4511.7,23.51211328]
[1758059894689,0.002,4511.8,4511.7,24.44071328]
[1758059897003,0.002,4511.8,4511.7,24.43971328]
[1758059900115,0.002,4511.8,4511.7,23.19761328]
[1758059900312,0.002,4511.8,4511.7,24.43971328]
[1758059901317,0.002,4511.8,4511.7,23.19761328]
[1758059901819,0.002,4511.8,4511.7,23.51111328]
[1758059902006,0.002,4511.8,4511.7,23.99221328]
[1758059902410,0.002,4511.8,4511.7,24.43971328]
[1758059903722,0.002,4511.8,4511.7,23.99221328]
[1758059905429,0.002,4511.8,4511.7,24.45571328]
[1758059905806,0.002,4511.8,4511.7,19.45321823]
[1758059907826,0.002,4511.8,4511.7,18.19511823]
[1758059908333,0.002,4511.8,4511.7,18.49431823]
[1758059908732,0.002,4511.8,4511.7,18.19511823]
[1758059909827,0.002,4511.8,4511.7,18.49431823]
[1758059911331,0.002,4511.8,4511.7,14.81231823]
[1758059911538,0.002,4511.8,4511.7,18.49431823]
[1758059915355,0.002,4511.8,4511.7,16.27635942]
[1758059917152,0.002,4511.8,4511.7,12.59435942]
[1758059917364,0.002,4511.8,4511.7,16.27635942]
[1758059917532,0.002,4511.8,4511.7,12.52895942]
[1758059917849,0.002,4511.8,4511.7,12.06635942]
[1758059918219,0.002,4511.8,4511.7,12.99245942]
[1758059918421,0.002,4511.8,4511.7,12.06635942]
[1758059919352,0.002,4511.8,4511.7,12.99245942]
[1758059920664,0.255,4511.8,4511.7,8.08515942]
[1758059920892,0.255,4511.8,4511.7,3.9443]
[1758059920893,0.5234,4511.8,4511.7,3.9443]
[1758059921582,0.5234,4511.8,4511.7,5.91962401]
[1758059921873,0.5234,4511.8,4511.7,6.42085942]
[1758059924471,0.5234,4511.8,4511.7,4.2044]
[1758059925388,0.5234,4511.8,4511.7,3.681]
[1758059926292,0.5234,4511.8,4511.7,3.682]
[1758059927764,0.5234,4511.8,4511.3,0.001]
[1758059927985,2.73981062,4511.8,4511.4,3.682]
[1758059928196,0.54338081,4511.7,4511.4,3.682]
[1758059928608,0.2506,4511.5,4511.4,3.682]
[1758059928767,0.5214,4511.5,4511.4,3.682]
[1758059929565,0.5139,4511.5,4511.3,0.001]
[1758059929770,0.57133471,4511.4,4511.3,0.001]
[1758059930004,0.57133471,4511.4,4511.3,3.683]
[1758059930210,0.81943471,4511.4,4511.3,3.683]
[1758059930904,0.81943471,4511.4,4511.3,3.7934]
[1758059932500,0.5189,4511.4,4511.3,3.7934]
[1758059933876,0.2481,4511.4,4511.3,3.7934]
[1758059934208,0.5114,4511.4,4511.3,3.683]
[1758059937682,0.2481,4511.4,4511.3,3.683]
[1758059937888,0.506588,4511.4,4511.3,3.683]
[1758059944216,0.2481,4511.4,4511.3,3.683]
[1758059947650,2.32687601,4511.7,4511.3,3.683]
[1758059947852,2.59017601,4511.7,4511.3,3.683]
[1758059948012,2.32687601,4511.7,4511.3,3.683]
[1758059948334,2.21652081,4511.6,4511.3,3.683]
[1758059948537,0.25922208,4511.5,4511.3,3.683]
[1758059949159,0.099,4511.4,4511.3,0.001]
[1758059949336,2.73650681,4511.4,4511.3,0.001]
[1758059949538,3.27583547,4511.4,4511.3,0.001]
[1758059949741,3.82507016,4511.4,4511.3,0.001]
[1758059949915,12.21007016,4511.4,4511.3,0.001]
[1758059950113,12.68711926,4511.4,4511.3,0.001]
[1758059950561,12.77593048,4511.4,4511.3,0.001]
[1758059950949,2.21685251,4510.9,4510.8,0.001]
[1758059951242,6.19954465,4510.9,4510.8,0.001]
[1758059951447,7.19649375,4510.9,4510.8,0.001]
[1758059951955,10.87849375,4510.9,4510.8,0.001]
[1758059953762,10.87790485,4510.9,4510.8,0.001]
[1758059957231,2.2170491,4510.5,4510.4,0.001]
[1758059957436,17.14356191,4510.5,4510.4,0.001]
[1758059957635,18.14003135,4510.5,4510.4,0.001]
[1758059959603,2.21714741,4510.3,4510.2,1e-08]
[1758059959806,3.61591998,4510.3,4510.2,1e-08]
[1758059959996,4.13581998,4510.3,4510.2,1e-08]
[1758059960608,4.22464916,4510.3,4510.2,1e-08]
[1758059962097,7.22464916,4510.3,4510.2,1e-08]
[1758059962292,10.90764916,4510.3,4510.2,1e-08]
[1758059963210,10.90714416,4510.3,4510.2,1e-08]
[1758059963906,10.75124416,4510.3,4510.2,1e-08]
[1758059964115,10.48794416,4510.3,4510.2,1e-08]
[1758059964410,10.9071042,4510.3,4510.2,1e-08]
[1758059965209,6.8049042,4510.3,4510.2,1e-08]
[1758059965507,10.48789222,4510.3,4510.2,1e-08]
[1758059966510,6.59138588,4510.3,4510.2,0.31040001]
[1758059966816,11.41298726,4510.3,4510.2,1.21230001]
[1758059967018,8.41298726,4510.3,4510.2,0.31040001]
[1758059967220,7.87480444,4510.3,4510.2,1.21230001]
[1758059967781,6.17080444,4510.3,4510.2,1.21230001]
[1758059968415,2.48780444,4510.3,4510.2,1.21230001]
[1758059968718,6.17080444,4510.3,4510.2,1.21230001]
[1758059970294,2.6944262,4510.3,4510.2,1.21230001]
[1758059970479,6.3774262,4510.3,4510.2,1.21230001]
[1758059971276,6.58408079,4510.3,4510.2,1.21230001]
[1758059971505,2.90108079,4510.3,4510.2,1.21230001]
[1758059971809,6.58408079,4510.3,4510.2,1.21230001]
[1758059972011,2.90108079,4510.3,4510.2,1.21230001]
[1758059972179,6.58408079,4510.3,4510.2,1.21230001]
[1758059972780,2.90108079,4510.3,4510.2,1.21230001]
[1758059973198,6.58408079,4510.3,4510.2,1.21230001]
[1758059973387,6.70816621,4510.3,4510.2,1.21230001]
[1758059973589,3.02516621,4510.3,4510.2,1.21230001]
[1758059974113,6.58408079,4510.3,4510.2,1.21230001]
[1758059974305,6.70821619,4510.3,4510.2,1.21230001]
[1758059975715,3.02521619,4510.3,4510.2,1.21230001]
[1758059975880,6.70821619,4510.3,4510.2,1.21230001]
[1758059976305,2.75468565,4510.3,4510.2,1.21230001]
[1758059976506,2.21714741,4510.3,4510.2,1.21230001]
[1758059976814,0.002,4510.5,4510.3,2.21714681]
[1758059977014,0.1124,4511.0,4510.4,1.23447098]
[1758059977317,0.1124,4511.0,4510.5,0.9019]
[1758059977722,2.21689604,4510.9,4510.2,0.11040001]
[1758059978030,2.21689604,4510.9,4510.8,0.3104]
[1758059978395,2.21689604,4510.9,4510.8,1.2123]
[1758059989456,2.21689604,4510.9,4510.8,0.744]
[1758059989657,2.21689604,4510.9,4510.8,1.2123]
[1758059991598,0.002,4511.0,4510.8,1.2123]
[1758059991800,0.002,4511.0,4510.9,0.86606667]
[1758059991970,0.002,4511.0,4510.9,3.47096667]
[1758059992170,0.002,4511.0,4510.9,3.78136667]
[1758059992496,0.002,4511.0,4510.9,5.99821918]
[1758059992695,0.002,4511.0,4510.9,5.97605066]
[1758059993195,0.002,4511.0,4510.9,3.75919815]
[1758059993406,0.002,4511.0,4510.9,3.78136667]
[1758059993585,0.002,4511.0,4510.9,7.46336667]
[1758059993762,0.002,4511.0,4510.9,7.44119815]
[1758059995498,0.002,4511.0,4510.9,9.65805066]
[1758059997188,0.002,4511.0,4510.9,9.76845066]
[1758059998493,0.002,4511.0,4510.9,9.85722463]
[1758060000216,0.002,4511.0,4510.9,10.64922463]
[1758060000581,1e-08,4511.5,4511.4,0.792]
[1758060000813,0.29569853,4513.8,4512.2,3.00821382]
[1758060000814,0.08875881,4513.8,4512.2,3.00821382]
[1758060001012,0.1104,4513.6,4512.2,14.01072699]
[1758060001191,0.1104,4513.6,4512.2,18.16412699]
[1758060001394,0.1104,4513.6,4512.2,13.1544352]
[1758060001602,0.1204,4513.9,4512.2,13.1544352]
[1758060003134,2.47873667,4513.8,4512.2,13.1544352]
[1758060004196,2.21548487,4513.7,4512.2,13.1544352]
[1758060004385,2.47873638,4513.8,4512.2,13.1544352]
[1758060005116,2.21549333,4513.7,4512.2,13.1544352]
[1758060005795,2.47876626,4513.8,4512.2,13.1544352]
[1758060005998,2.21548366,4513.7,4512.2,13.1544352]
[1758060006182,2.21548366,4513.7,4512.2,9.4734352]
[1758060006386,0.2633,4513.5,4512.2,13.56012699]
[1758060006715,0.2633,4512.7,4512.2,10.50409179]
[1758060007797,0.1861,4512.9,4512.2,10.81209179]
[1758060007798,0.01,4512.9,4512.2,10.81209179]
[1758060008001,0.2733,4512.9,4512.2,0.4184]
[1758060008194,0.2733,4512.9,4512.2,3.68]
[1758060008195,0.101,4512.3,4512.2,3.68]
[1758060008818,0.002,4512.3,4512.2,3.68]
[1758060009007,0.002,4512.3,4512.2,3.988]
[1758060009202,0.101,4512.3,4511.8,1.703]
[1758060009394,0.101,4512.3,4511.9,3.68]
[1758060009395,0.4387,4512.2,4511.9,3.68]
[1758060009600,0.0998,4512.0,4511.9,3.68]
[1758060011020,0.3631,4512.0,4511.9,3.68]
[1758060011420,0.0998,4512.0,4511.9,3.68]
[1758060012502,0.002,4512.3,4511.9,8.68969179]
[1758060015446,0.002,4512.0,4511.9,8.68969179]
[1758060015654,0.002,4512.0,4511.9,8.99769179]
[1758060017935,0.2754,4512.0,4511.9,3.68]
[1758060018106,0.5387,4512.0,4511.9,3.68]
[1758060018315,0.2754,4512.0,4511.9,3.68]
[1758060018940,0.002,4512.0,4511.9,3.68]
[1758060019265,0.002,4512.0,4511.9,8.68969179]
[1758060019481,0.002,4512.0,4511.9,9.92069179]
[1758060019771,0.002,4512.0,4511.9,14.26421205]
[1758060020751,0.002,4512.0,4511.9,22.27390384]
[1758060022468,0.002,4512.3,4512.2,3.00821382]
[1758060022772,0.002,4512.3,4512.2,16.53446774]
[1758060023068,0.002,4512.3,4512.2,17.74330561]
[1758060023371,0.002,4512.3,4512.2,20.08126442]
[1758060025249,0.002,4512.5,4512.4,6.00811559]
[1758060025454,0.002,4512.5,4512.4,9.68911559]
[1758060025739,0.002,4512.5,4512.4,10.94661559]
[1758060027747,0.002,4512.5,4512.4,16.94618497]
[1758060028073,0.002,4512.5,4512.4,19.16414378]
[1758060029248,0.002,4512.5,4512.4,19.28414378]
[1758060030190,0.002,4512.5,4512.4,19.72674572]
[1758060043914,0.002,4512.5,4512.4,18.75584572]
[1758060044790,0.002,4512.5,4512.4,19.72674572]
[1758060048521,0.002,4512.5,4512.4,19.25534572]
[1758060049013,0.002,4512.5,4512.4,18.75584572]
[1758060049523,0.002,4512.5,4512.4,19.25534572]
[1758060050311,0.002,4512.5,4512.4,18.75584572]
[1758060050896,0.002,4512.5,4512.4,19.72674572]
[1758060051092,0.002,4512.5,4512.4,18.75584572]
[1758060051329,0.002,4512.5,4512.4,19.72674572]
[1758060058532,0.002,4512.5,4512.4,18.75584572]
[1758060058736,0.002,4512.5,4512.4,19.67064572]
[1758060062532,0.002,4512.5,4512.4,19.78104572]
[1758060063649,0.002,4512.5,4512.4,19.32074572]
[1758060063943,0.002,4512.5,4512.4,18.86624572]
[1758060064148,0.002,4512.5,4512.4,19.78104572]
[1758060064738,0.002,4512.5,4512.4,18.86624572]
[1758060064914,0.002,4512.5,4512.4,15.18524572]
[1758060065246,0.002,4512.5,4512.4,18.57764572]
[1758060066250,0.002,4512.5,4512.4,19.80564572]
[1758060068522,0.002,4512.5,4512.4,18.89084572]
[1758060068720,0.002,4512.5,4512.4,19.80564572]
[1758060068917,0.002,4512.5,4512.4,18.89084572]
[1758060069122,0.002,4512.5,4512.4,19.34534572]
[1758060069451,0.002,4512.5,4512.4,19.80564572]
[1758060070154,0.002,4512.5,4512.4,16.12664572]
[1758060070353,0.002,4512.5,4512.4,19.35114572]
[1758060070522,0.002,4512.5,4512.4,19.80564572]
[1758060073037,0.002,4512.5,4512.4,19.69524572]
[1758060074454,0.002,4513.0,4512.4,19.69524572]
[1758060074455,1e-08,4513.0,4512.9,3.00787006]
[1758060074671,1e-08,4513.0,4512.9,15.70859814]
[1758060074846,1e-08,4513.0,4512.9,16.91443944]
[1758060075267,1e-08,4513.0,4512.9,17.09053944]
[1758060075769,1e-08,4513.0,4512.9,16.63023944]
[1758060075975,1e-08,4513.0,4512.9,18.73645396]
[1758060076874,1e-08,4513.0,4512.9,19.19675396]
[1758060077043,1e-08,4513.0,4512.9,18.73645396]
[1758060077672,1e-08,4513.0,4512.9,19.19675396]
[1758060078369,1e-08,4513.0,4512.9,19.19575396]
[1758060079764,1e-08,4513.0,4512.9,18.73545396]
[1758060080946,1e-08,4513.0,4512.9,19.19575396]
[1758060081769,1e-08,4513.0,4512.9,18.28095396]
[1758060082951,1e-08,4513.0,4512.9,18.39135396]
[1758060083151,1e-08,4513.0,4512.9,19.30615396]
[1758060085952,1e-08,4513.0,4512.9,18.39135396]
[1758060087079,1e-08,4513.0,4512.9,18.86815396]
[1758060087585,1e-08,4513.0,4512.9,19.32385396]
[1758060087768,1e-08,4513.0,4512.9,18.32224538]
[1758060090779,1e-08,4513.0,4512.9,17.86654538]
[1758060091280,1e-08,4513.0,4512.9,17.38974538]
[1758060092673,1e-08,4513.0,4512.9,17.07654538]
[1758060095487,0.09900001,4513.0,4512.9,17.07654538]
[1758060095792,0.53770001,4513.0,4512.8,0.001]
[1758060096094,0.53770001,4513.0,4512.9,3.68]
[1758060104405,2.75352097,4513.0,4512.9,3.68]
[1758060104637,0.53770001,4513.0,4512.8,0.001]
[1758060104800,0.53770001,4513.0,4512.9,3.68]
[1758060104801,0.59591726,4513.0,4512.9,3.68]
[1758060105201,0.09900001,4513.0,4512.9,3.68]
[1758060105402,0.53770001,4513.0,4512.9,3.68]
[1758060105838,2.75352097,4513.0,4512.9,3.68]
[1758060106040,0.53770001,4513.0,4512.9,3.68]
[1758060106442,2.75352097,4513.0,4512.9,3.68]
[1758060106740,0.53770001,4513.0,4512.9,3.68]
[1758060110627,0.36230001,4513.0,4512.9,3.68]
[1758060111732,2.57812097,4513.0,4512.9,3.68]
[1758060112251,2.21587006,4512.9,4512.8,0.001]
[1758060112737,2.75357006,4512.9,4512.8,0.001]
[1758060113044,7.75153086,4512.9,4512.8,0.001]
[1758060113414,2.75357006,4512.9,4512.8,0.001]
[1758060113612,6.43457006,4512.9,4512.8,0.001]
[1758060113812,8.02927828,4512.9,4512.8,0.001]
[1758060114449,8.1180491,4512.9,4512.8,0.001]
[1758060115254,16.65346344,4512.9,4512.8,0.001]
[1758060115442,17.12976479,4512.9,4512.8,0.001]
[1758060116146,17.13076479,4512.9,4512.8,0.001]
[1758060120260,5.21591916,4512.8,4512.3,1e-08]
[1758060120432,15.21203719,4512.4,4512.3,1e-08]
[1758060120634,15.0112417,4512.4,4512.3,1e-08]
[1758060120835,11.7654417,4512.4,4512.3,1e-08]
[1758060121163,15.53723558,4512.4,4512.3,1e-08]
[1758060121459,12.36219512,4512.4,4512.3,1e-08]
[1758060121649,16.04519512,4512.4,4512.3,1e-08]
[1758060123740,2.21631205,4512.0,4511.9,0.001]
[1758060123947,2.21655768,4511.5,4511.4,1e-08]
[1758060124148,10.15362624,4511.5,4511.4,1e-08]
[1758060124350,10.98473369,4511.5,4511.4,1e-08]
[1758060124964,15.98269449,4511.5,4511.4,1e-08]
[1758060125160,16.09492631,4511.5,4511.4,1e-08]
[1758060125561,16.09492631,4511.5,4510.9,0.001]
[1758060125562,2.21680336,4511.0,4510.9,0.001]
[1758060125767,15.17948186,4511.0,4510.9,0.001]
[1758060126066,16.19450538,4511.0,4510.9,0.001]
[1758060126269,6.46240242,4511.0,4510.9,0.001]
[1758060126566,10.14740242,4511.0,4510.9,1.1854]
[1758060126765,10.14740242,4511.0,4510.9,0.2879]
[1758060126981,10.24640242,4511.0,4510.9,0.001]
[1758060127334,10.37014042,4511.0,4510.9,0.001]
[1758060127575,7.12384042,4511.0,4510.9,0.001]
[1758060127730,10.80884042,4511.0,4510.9,0.001]
[1758060127935,10.37014329,4511.0,4510.9,0.001]
[1758060128134,16.28199835,4511.0,4510.9,0.001]
[1758060128333,11.28403755,4511.0,4510.9,0.001]
[1758060130033,11.28403755,4511.0,4510.2,1e-08]
[1758060130034,2.21714741,4510.3,4510.2,1e-08]
[1758060130241,14.53824875,4510.3,4510.2,1e-08]
[1758060130441,15.07494875,4510.3,4510.2,1e-08]
[1758060130636,15.16377556,4510.3,4510.2,1e-08]
[1758060130957,14.90047556,4510.3,4510.2,1e-08]
[1758060131360,15.7618585,4510.3,4510.2,1e-08]
[1758060131865,15.4985585,4510.3,4510.2,1e-08]
[1758060133439,15.7645585,4510.3,4510.2,1e-08]
[1758060133670,2.21724573,4510.1,4510.0,1e-08]
[1758060133838,12.91874617,4510.1,4510.0,1e-08]
[1758060134039,13.92726373,4510.1,4510.0,1e-08]
[1758060134977,14.04826373,4510.1,4510.0,1e-08]
[1758060135339,13.78496373,4510.1,4510.0,1e-08]
[1758060135645,13.30755083,4510.1,4510.0,0.28690001]
[1758060135976,13.51337467,4510.1,4510.0,1.18440001]
[1758060136172,13.51337467,4510.1,4510.0,0.75170001]
[1758060136376,13.51337467,4510.1,4510.0,1e-08]
[1758060138042,13.51337467,4510.1,4510.0,0.28690001]
[1758060138043,9.70180929,4510.1,4510.0,0.28690001]
[1758060138350,12.70846789,4510.1,4510.0,1.18440001]
[1758060138746,12.70946789,4510.1,4510.0,1.18440001]
[1758060138977,2.54495863,4510.1,4510.0,1.18440001]
[1758060139195,2.43889298,4510.3,4510.0,1.18440001]
[1758060139196,2.21714741,4510.3,4510.0,1.18440001]
[1758060139396,2.2171975,4510.2,4510.1,0.8975]
[1758060139596,2.2171975,4510.2,4510.1,1.1844]
[1758060139778,5.90713765,4510.4,4510.1,1.1844]
[1758060140087,2.21719657,4510.2,4510.1,1.1844]
[1758060140250,2.21719657,4510.2,4510.1,0.2869]
[1758060140982,2.21716184,4510.3,4510.1,1.1844]
[1758060141144,3.689,4510.4,4510.2,0.8975]
[1758060141346,0.1104,4510.1,4510.0,1e-08]
[1758060141782,2.32764573,4510.1,4510.0,0.28690001]
[1758060141979,2.32764573,4510.1,4510.0,1.18440001]
[1758060143149,2.53416153,4510.1,4510.0,1.18440001]
[1758060143350,2.53618658,4510.1,4510.0,1.18440001]
[1758060144104,0.31894085,4510.1,4510.0,1.18440001]
[1758060144398,0.1124,4510.6,4510.0,1.31514001]
[1758060144556,0.1124,4510.6,4510.1,0.8975]
[1758060144950,0.1124,4510.6,4510.5,0.3109]
[1758060145155,2.32939995,4510.6,4510.5,1.2455]
[1758060145374,3.01136767,4510.6,4510.5,0.3109]
[1758060145557,2.21724573,4510.1,4510.0,1e-08]
[1758060145756,2.32764573,4510.1,4510.0,1e-08]
[1758060145982,2.53445908,4510.1,4510.0,1.24550001]
[1758060146781,0.31721335,4510.1,4510.0,1.24550001]
[1758060146977,2.32764573,4510.1,4510.0,1.24550001]
[1758060147170,2.53445908,4510.1,4510.0,1.24550001]
[1758060148379,2.53445908,4510.1,4510.0,0.31090001]
[1758060148702,2.53445908,4510.1,4510.0,1.24550001]
[1758060148900,3.42648643,4510.1,4510.0,0.31090001]
[1758060149054,8.43941349,4510.1,4510.0,1e-08]
[1758060149397,9.1910135,4510.1,4510.0,1e-08]
[1758060149770,4.1930527,4510.1,4510.0,1e-08]
[1758060150003,5.62720333,4510.1,4510.0,1e-08]
[1758060150190,8.80460333,4510.1,4510.0,1e-08]
[1758060151274,8.26490333,4510.1,4510.0,1e-08]
[1758060151674,11.53760332,4510.1,4510.0,0.31090001]
[1758060152000,11.93400332,4510.1,4510.0,1e-08]
[1758060152380,18.21060529,4510.1,4510.0,1e-08]
[1758060155484,17.35299824,4510.1,4510.0,1e-08]
[1758060155878,17.08969824,4510.1,4510.0,1e-08]
[1758060160118,17.35299824,4510.1,4510.0,1e-08]
[1758060160705,17.14560848,4510.1,4510.0,1e-08]
[1758060161018,17.35296227,4510.1,4510.0,1e-08]
[1758060161388,17.09166227,4510.1,4510.0,1e-08]
[1758060161603,17.35496227,4510.1,4510.0,1e-08]
[1758060161789,2.21739323,4509.8,4509.5,0.001]
[1758060162112,11.63423346,4509.8,4509.5,0.001]
[1758060162311,11.90963346,4509.8,4509.5,0.001]
[1758060162482,12.26177704,4509.8,4509.5,0.001]
[1758060163613,12.26274331,4509.8,4509.5,0.001]
[1758060163917,12.73804037,4509.8,4509.5,0.001]
[1758060165524,2.21754074,4509.5,4509.4,1e-08]
[1758060165734,2.21773746,4509.1,4509.0,1e-08]
[1758060165908,11.38916964,4509.1,4509.0,1e-08]
[1758060166100,16.80345051,4509.1,4509.0,1e-08]
[1758060166300,17.06675051,4509.1,4509.0,1e-08]
[1758060166614,16.80345051,4509.1,4509.0,1e-08]
[1758060167138,17.06675051,4509.1,4509.0,1e-08]
[1758060168133,17.06660445,4509.1,4509.0,1e-08]
[1758060168337,16.80330445,4509.1,4509.0,1e-08]
[1758060169701,16.59591469,4509.1,4509.0,1e-08]
[1758060170014,16.80295508,4509.1,4509.0,1e-08]
[1758060170200,17.06625508,4509.1,4509.0,1e-08]